bitfinex/quotes_BTCUSD_20250222
["timestamp","ask_amount","ask_price","bid_price","bid_amount"]
[1740189002814,0.0008504,96500.0,96499.0,0.40402869]
[1740189003169,0.0018504,96500.0,96499.0,0.39902869]
[1740189003316,0.0028504,96500.0,96499.0,0.40402869]
[1740189004556,0.0028504,96500.0,96499.0,0.42489964]
[1740189006000,0.0028504,96500.0,96499.0,0.26181764]
[1740189006212,0.1582904,96500.0,96499.0,0.26181764]
[1740189006543,0.16629039,96500.0,96499.0,0.26181764]
[1740189006738,0.16629039,96500.0,96499.0,0.21351764]
[1740189010559,0.16629039,96500.0,96499.0,0.008701]
[1740189011212,0.16529039,96500.0,96499.0,0.006701]
[1740189011415,0.16429039,96500.0,96499.0,0.001701]
[1740189011757,0.16429039,96500.0,96499.0,0.004701]
[1740189012133,0.16429039,96500.0,96499.0,0.003701]
[1740189012353,0.16429039,96500.0,96499.0,0.001701]
[1740189012557,0.16429039,96500.0,96499.0,0.004701]
[1740189012758,0.16429039,96500.0,96499.0,0.006701]
[1740189012971,0.16429039,96500.0,96499.0,0.003701]
[1740189013426,0.16429039,96500.0,96499.0,0.006701]
[1740189016251,0.16429039,96500.0,96499.0,0.003701]
[1740189016585,0.16429039,96500.0,96499.0,0.005701]
[1740189017480,0.16429039,96500.0,96499.0,0.003701]
[1740189017923,0.16429039,96500.0,96499.0,0.004701]
[1740189018117,0.16429039,96500.0,96499.0,0.003701]
[1740189018464,0.16429039,96500.0,96499.0,0.001701]
[1740189018684,0.16429039,96500.0,96499.0,0.003701]
[1740189023098,0.31429039,96500.0,96499.0,0.003701]
[1740189023343,0.37455199,96500.0,96499.0,0.003701]
[1740189023587,2.53912799,96500.0,96499.0,0.003701]
[1740189024062,2.53912799,96500.0,96499.0,0.001701]
[1740189024544,2.54312799,96500.0,96499.0,0.001701]
[1740189025739,2.54612799,96500.0,96499.0,0.001701]
[1740189026467,2.48586639,96500.0,96499.0,0.001701]
[1740189028520,0.32129039,96500.0,96499.0,0.001701]
[1740189029004,2.48586639,96500.0,96499.0,0.001701]
[1740189029462,2.50210223,96500.0,96499.0,0.001701]
[1740189036343,0.305459,96488.0,96487.0,0.0017012]
[1740189036863,0.31215376,96488.0,96487.0,0.0017012]
[1740189037470,0.31515376,96488.0,96487.0,0.0017012]
[1740189037666,0.31515376,96488.0,96487.0,0.00213311]
[1740189038010,0.31215376,96488.0,96487.0,0.00213311]
[1740189038221,0.31215376,96488.0,96487.0,1.1e-07]
[1740189038222,0.45255084,96488.0,96487.0,1.1e-07]
[1740189038425,0.45255084,96488.0,96457.0,0.0801]
[1740189038426,0.305485,96472.0,96457.0,0.0801]
[1740189038633,2.470061,96472.0,96471.0,0.00052922]
[1740189038862,2.57939169,96472.0,96471.0,0.00052922]
[1740189039072,2.58961122,96472.0,96471.0,0.00052922]
[1740189039435,2.60585279,96472.0,96471.0,0.00052922]
[1740189040873,2.5032071,96472.0,96471.0,0.00052922]
[1740189041303,0.3386311,96472.0,96471.0,0.00052922]
[1740189041511,2.5032071,96472.0,96471.0,0.00052922]
[1740189042308,2.5502071,96472.0,96471.0,0.00052922]
[1740189042552,2.5502071,96472.0,96471.0,0.00137962]
[1740189042752,2.65285279,96472.0,96471.0,0.00137962]
[1740189043833,0.3369311,96472.0,96471.0,0.00137962]
[1740189044157,0.1886311,96472.0,96471.0,0.00137962]
[1740189044290,0.01690453,96472.0,96471.0,0.00137962]
[1740189045176,0.17238953,96472.0,96471.0,0.00137962]
[1740189046991,2.33696553,96472.0,96471.0,0.00137962]
[1740189047203,2.43961122,96472.0,96471.0,0.00137962]
[1740189047878,2.44161122,96472.0,96471.0,0.00137962]
[1740189048643,2.44361122,96472.0,96471.0,0.00137962]
[1740189049372,2.34096553,96472.0,96471.0,0.00137962]
[1740189049815,2.35720535,96472.0,96471.0,0.00137962]
[1740189050469,1.20292935,96472.0,96471.0,0.00137962]
[1740189050680,1.18132935,96472.0,96471.0,0.00137962]
[1740189050906,0.19262935,96472.0,96471.0,0.00137962]
[1740189051130,0.19262935,96472.0,96471.0,0.08147962]
[1740189051635,0.19062935,96472.0,96471.0,0.08147962]
[1740189051843,0.18862935,96472.0,96471.0,0.08147962]
[1740189052063,0.18962935,96472.0,96471.0,0.08147962]
[1740189052499,0.18862935,96472.0,96471.0,0.08147962]
[1740189053260,0.18962935,96472.0,96471.0,0.08147962]
[1740189053464,0.18862935,96472.0,96471.0,0.08147962]
[1740189056245,0.17238953,96472.0,96471.0,0.08147962]
[1740189074446,0.17238953,96472.0,96471.0,0.00137962]
[1740189082185,0.17238953,96472.0,96471.0,0.08187962]
[1740189083373,0.01690453,96472.0,96471.0,0.08187962]
[1740189085218,0.17238953,96472.0,96471.0,0.08187962]
[1740189086177,0.01690453,96472.0,96471.0,0.08187962]
[1740189086579,0.01021953,96472.0,96471.0,0.08187962]
[1740189086789,0.01685945,96472.0,96471.0,0.08187962]
[1740189086984,0.00663992,96472.0,96471.0,0.08187962]
[1740189087184,0.155483,96474.0,96471.0,0.08187962]
[1740189087389,0.00664163,96472.0,96471.0,0.08187962]
[1740189087599,0.0008504,96500.0,96471.0,0.10402531]
[1740189087809,0.15,96483.0,96472.0,0.18438936]
[1740189088035,0.155475,96479.0,96472.0,0.18438936]
[1740189088236,0.00664163,96479.0,96472.0,0.18314569]
[1740189088435,0.01690255,96479.0,96472.0,0.18314569]
[1740189088939,0.16573592,96479.0,96472.0,0.18314569]
[1740189089138,0.00664551,96478.0,96472.0,0.18314569]
[1740189089979,0.16212251,96478.0,96472.0,0.18314569]
[1740189090491,0.16212251,96478.0,96472.0,0.18414569]
[1740189091192,0.155477,96477.0,96472.0,0.18314569]
[1740189091399,0.16212581,96477.0,96472.0,0.18414569]
[1740189091984,0.16212581,96477.0,96472.0,0.18314569]
[1740189092301,0.16212581,96477.0,96472.0,0.18514569]
[1740189092503,0.155479,96476.0,96472.0,0.18514569]
[1740189092702,0.16212581,96477.0,96472.0,0.18514569]
[1740189092884,0.155477,96477.0,96472.0,0.18514569]
[1740189093088,0.00664881,96476.0,96472.0,0.18514569]
[1740189093469,0.16212781,96476.0,96472.0,0.18314569]
[1740189093717,0.00664881,96476.0,96472.0,0.18314569]
[1740189093945,0.155477,96477.0,96472.0,0.18514569]
[1740189094361,0.155477,96477.0,96473.0,0.01454085]
[1740189094568,0.00664881,96476.0,96475.0,0.01454085]
[1740189094746,0.00664881,96476.0,96475.0,0.11718654]
[1740189094924,0.16212781,96476.0,96475.0,0.11718654]
[1740189095728,0.00664881,96476.0,96475.0,0.11718654]
[1740189096881,0.00664881,96476.0,96475.0,0.11918654]
[1740189097117,0.155479,96476.0,96475.0,0.11918654]
[1740189097323,0.16212781,96476.0,96475.0,0.11918654]
[1740189114691,0.16212781,96476.0,96475.0,0.12003714]
[1740189119421,0.16212781,96476.0,96475.0,0.19853714]
[1740189119645,0.00664881,96476.0,96475.0,0.19853714]
[1740189120054,0.155479,96476.0,96475.0,0.19853714]
[1740189120235,0.16213488,96476.0,96475.0,0.19853714]
[1740189122029,0.16213488,96476.0,96475.0,0.18399629]
[1740189123135,0.16213488,96476.0,96475.0,0.19853714]
[1740189125525,0.16213488,96476.0,96475.0,0.18399629]
[1740189126161,0.16213488,96476.0,96475.0,0.19853714]
[1740189150235,0.16213488,96476.0,96475.0,0.19353714]
[1740189161052,0.16383568,96476.0,96475.0,0.19353714]
[1740189236685,0.21329893,96476.0,96475.0,0.19353714]
[1740189237103,0.16383568,96476.0,96475.0,0.19353714]
[1740189249741,0.17312816,96476.0,96475.0,0.19353714]
[1740189257112,0.16383568,96476.0,96475.0,0.19353714]
[1740189260323,0.17312815,96476.0,96475.0,0.19353714]
[1740189261273,0.16383568,96476.0,96475.0,0.19353714]
[1740189280641,0.16383568,96476.0,96475.0,0.11503714]
[1740189288662,0.00835668,96476.0,96475.0,0.11503714]
[1740189289089,0.0017008,96476.0,96475.0,0.11503714]
[1740189312443,0.0017008,96476.0,96475.0,0.10049629]
[1740189312667,0.0017008,96476.0,96475.0,0.0028506]
[1740189312944,0.00924955,96476.0,96475.0,0.0028506]
[1740189314375,0.02412072,96476.0,96475.0,0.0028506]
[1740189316035,0.00924955,96476.0,96475.0,0.0028506]
[1740189323615,0.00924955,96476.0,96475.0,0.0008506]
[1740189324027,0.01024955,96476.0,96475.0,0.0008506]
[1740189325525,0.00924955,96476.0,96475.0,0.0008506]
[1740189325947,0.00924955,96476.0,96475.0,0.0028506]
[1740189326926,0.00924955,96476.0,96475.0,0.0018506]
[1740189327557,0.00924955,96476.0,96475.0,0.0008506]
[1740189328999,0.00924955,96476.0,96475.0,0.0028506]
[1740189333587,0.00924955,96476.0,96475.0,0.0008506]
[1740189333784,0.00924955,96476.0,96475.0,0.0018506]
[1740189335678,0.00924955,96476.0,96475.0,0.0008506]
[1740189335866,0.00924955,96476.0,96475.0,0.0028506]
[1740189336331,0.00924955,96476.0,96475.0,0.0008506]
[1740189336651,0.00924955,96476.0,96475.0,0.0028506]
[1740189345610,0.16472855,96476.0,96475.0,0.0028506]
[1740189364772,0.24621086,96476.0,96475.0,0.0028506]
[1740189365230,0.16472855,96476.0,96475.0,0.0028506]
[1740189365463,0.36242855,96476.0,96475.0,0.0028506]
[1740189365693,2.52700455,96476.0,96475.0,0.0028506]
[1740189365890,2.52700455,96476.0,96472.0,0.0008506]
[1740189365891,0.305483,96473.0,96472.0,0.0008506]
[1740189366165,2.47760344,96473.0,96472.0,0.0008506]
[1740189366377,0.31302744,96473.0,96472.0,0.0008506]
[1740189366588,2.58024913,96473.0,96472.0,0.0008506]
[1740189367014,0.305485,96472.0,96471.0,0.00137962]
[1740189367222,2.546061,96472.0,96471.0,0.00137962]
[1740189367427,2.65624383,96472.0,96471.0,0.00137962]
[1740189367732,2.65624383,96472.0,96447.0,0.0799]
[1740189367733,2.50075883,96472.0,96439.0,0.0466]
[1740189367941,0.155533,96442.0,96441.0,0.0799]
[1740189368358,0.155537,96440.0,96439.0,4.323e-05]
[1740189369030,0.16305885,96440.0,96439.0,4.323e-05]
[1740189370317,0.16305885,96440.0,96439.0,0.00089363]
[1740189370512,0.16405885,96440.0,96439.0,0.00089363]
[1740189370730,0.23002574,96440.0,96439.0,0.00089363]
[1740189370961,0.22902574,96440.0,96439.0,0.00089363]
[1740189371173,0.23002574,96440.0,96439.0,0.00089363]
[1740189371391,2.39460174,96440.0,96439.0,0.00089363]
[1740189371599,2.55512404,96440.0,96439.0,0.00089363]
[1740189371933,2.55412404,96440.0,96439.0,0.00089363]
[1740189372344,0.39054804,96440.0,96439.0,0.00089363]
[1740189372554,2.55612404,96440.0,96439.0,0.00089363]
[1740189373191,2.55512404,96440.0,96439.0,0.00089363]
[1740189373733,2.55612404,96440.0,96439.0,0.00089363]
[1740189373929,2.55912404,96440.0,96439.0,0.00089363]
[1740189374109,2.55612404,96440.0,96439.0,0.00089363]
[1740189374358,2.55912404,96440.0,96439.0,0.00089363]
[1740189375644,0.15,96439.0,96431.0,0.0004]
[1740189375848,0.15555,96432.0,96431.0,0.0004]
[1740189376053,2.320126,96432.0,96431.0,0.0004]
[1740189376256,2.32757297,96432.0,96431.0,0.0004]
[1740189376929,2.32857297,96432.0,96431.0,0.0004]
[1740189380644,2.34481834,96432.0,96431.0,0.0004]
[1740189380856,2.44746403,96432.0,96431.0,0.0004]
[1740189381671,2.44746403,96432.0,96431.0,0.0012507]
[1740189385937,2.43121866,96432.0,96431.0,0.0012507]
[1740189386986,2.58121866,96432.0,96431.0,0.0012507]
[1740189388102,2.58662792,96432.0,96431.0,0.0012507]
[1740189389315,2.60287422,96432.0,96431.0,0.0012507]
[1740189390201,0.305596,96403.0,96400.0,0.0478]
[1740189390442,0.155614,96392.0,96391.0,0.0482]
[1740189390643,0.155612,96393.0,96391.0,0.15084569]
[1740189390798,0.15,96410.0,96391.0,0.06274085]
[1740189390799,0.16301753,96392.0,96391.0,0.06274085]
[1740189391001,0.16301753,96392.0,96391.0,0.0482]
[1740189391612,0.16312911,96392.0,96391.0,0.06274085]
[1740189392593,0.17372957,96392.0,96391.0,0.06274085]
[1740189392809,0.17372957,96392.0,96391.0,0.0482]
[1740189393233,0.38422365,96392.0,96391.0,0.0004]
[1740189393441,2.54879965,96392.0,96391.0,0.0004]
[1740189393563,2.54879965,96392.0,96391.0,0.0012507]
[1740189394564,2.53819919,96392.0,96391.0,0.0012507]
[1740189394766,2.47770511,96392.0,96391.0,0.0012507]
[1740189394969,2.48470511,96392.0,96391.0,0.0012507]
[1740189395445,2.47770511,96392.0,96391.0,0.0012507]
[1740189395629,2.48370511,96392.0,96391.0,0.0012507]
[1740189395831,2.49070511,96392.0,96391.0,0.0012507]
[1740189396028,2.56976651,96392.0,96391.0,0.0012507]
[1740189396270,2.56376651,96392.0,96391.0,0.0012507]
[1740189396425,2.57376651,96392.0,96391.0,0.0012507]
[1740189397067,2.5839864,96392.0,96391.0,0.0012507]
[1740189399313,2.410449,96392.0,96391.0,0.0012507]
[1740189399991,2.256249,96392.0,96391.0,0.0012507]
[1740189400210,2.27250332,96392.0,96391.0,0.0012507]
[1740189402544,2.16160332,96392.0,96391.0,0.0012507]
[1740189402745,2.01660332,96392.0,96391.0,0.0012507]
[1740189403595,0.99580332,96392.0,96391.0,0.0012507]
[1740189403805,0.19960332,96392.0,96391.0,0.0012507]
[1740189404007,0.34960332,96392.0,96391.0,0.0012507]
[1740189406675,0.333349,96392.0,96391.0,0.0012507]
[1740189408374,0.331349,96392.0,96391.0,0.0012507]
[1740189409234,0.4059801,96392.0,96391.0,0.0012507]
[1740189409823,0.331349,96392.0,96391.0,0.0012507]
[1740189423013,0.177735,96392.0,96391.0,0.0012507]
[1740189423228,0.333349,96392.0,96391.0,0.0012507]
[1740189423626,0.027735,96392.0,96391.0,0.0012507]
[1740189423893,0.027735,96392.0,96391.0,0.11843724]
[1740189424094,0.022735,96392.0,96391.0,0.11843724]
[1740189424232,0.019735,96392.0,96391.0,0.11843724]
[1740189424461,0.021735,96392.0,96391.0,0.19913724]
[1740189425167,0.019735,96392.0,96391.0,0.19913724]
[1740189425518,0.021735,96392.0,96391.0,0.19913724]
[1740189425954,0.019735,96392.0,96391.0,0.19913724]
[1740189427300,0.020735,96392.0,96391.0,0.19913724]
[1740189428053,0.0224374,96392.0,96391.0,0.19913724]
[1740189428525,0.0224374,96392.0,96391.0,0.19913724]
[1740189429423,0.0224374,96392.0,96391.0,0.22014728]
[1740189430171,0.00481398,96392.0,96391.0,0.42236328]
[1740189431219,0.00181398,96392.0,96391.0,0.42236328]
[1740189440432,0.00181398,96392.0,96391.0,0.42336328]
[1740189453983,0.00181398,96392.0,96391.0,0.43096328]
[1740189454909,0.00181398,96392.0,96391.0,0.42336328]
[1740189455069,0.00181398,96392.0,96391.0,0.43096328]
[1740189472249,0.00181398,96392.0,96391.0,0.42336328]
[1740189472492,0.15742798,96392.0,96391.0,0.26774728]
[1740189472727,0.15742798,96392.0,96391.0,0.12703724]
[1740189472930,0.16475609,96392.0,96391.0,0.11943724]
[1740189473339,0.16475609,96392.0,96391.0,0.10389639]
[1740189473549,0.16475609,96392.0,96391.0,0.11943724]
[1740189474802,0.16475609,96392.0,96391.0,0.11843724]
[1740189475241,0.16475609,96392.0,96391.0,0.11943724]
[1740189475660,0.16475609,96392.0,96391.0,0.11843724]
[1740189475872,0.16475609,96392.0,96391.0,0.11943724]
[1740189480282,0.00914209,96392.0,96391.0,0.11943724]
[1740189480503,0.00914209,96392.0,96391.0,0.27505324]
[1740189480749,0.00914209,96392.0,96391.0,0.11943724]
[1740189480750,0.00181398,96392.0,96391.0,0.11943724]
[1740189480887,0.00181398,96392.0,96391.0,0.27505324]
[1740189482247,0.00181398,96392.0,96391.0,0.11943724]
[1740189484432,0.00181398,96392.0,96391.0,0.27505324]
[1740189484572,0.00181398,96392.0,96391.0,0.11943724]
[1740189487452,0.00181398,96392.0,96391.0,0.27505324]
[1740189492684,0.00181398,96392.0,96391.0,0.11943724]
[1740189492884,0.00181398,96392.0,96391.0,0.27505324]
[1740189499360,0.00181398,96392.0,96391.0,0.29450733]
[1740189500018,0.00181398,96392.0,96391.0,0.34400733]
[1740189502235,0.00181398,96392.0,96391.0,0.32455324]
[1740189504782,0.00181398,96392.0,96391.0,0.40525324]
[1740189507959,0.00181398,96392.0,96391.0,0.40315324]
[1740189510004,0.00181398,96392.0,96391.0,0.40215324]
[1740189510306,0.00181398,96392.0,96391.0,0.40300364]
[1740189510941,0.00181398,96392.0,96391.0,0.40400364]
[1740189510942,0.00281398,96392.0,96391.0,0.40400364]
[1740189512238,0.00281398,96392.0,96391.0,0.40500364]
[1740189512459,0.00181398,96392.0,96391.0,0.40300364]
[1740189512589,0.00181398,96392.0,96391.0,0.40800364]
[1740189512893,0.00281398,96392.0,96391.0,0.41100364]
[1740189513074,0.00281398,96392.0,96391.0,0.40600364]
[1740189513520,0.00381398,96392.0,96391.0,0.41200364]
[1740189518434,0.00381398,96392.0,96391.0,0.25638764]
[1740189518694,0.00381398,96392.0,96391.0,0.37010364]
[1740189518923,0.00381398,96392.0,96391.0,0.28940364]
[1740189536146,0.00381398,96392.0,96391.0,0.28180364]
[1740189536361,0.00381398,96392.0,96391.0,0.28940364]
[1740189550738,0.00381398,96392.0,96391.0,0.13378764]
[1740189550941,0.00381398,96392.0,96391.0,0.28940364]
[1740189551087,0.01115303,96392.0,96391.0,0.28940364]
[1740189552173,0.00381398,96392.0,96391.0,0.28940364]
[1740189555262,0.00381398,96392.0,96391.0,0.28180364]
[1740189555462,0.00381398,96392.0,96391.0,0.28940364]
[1740189555869,0.01115303,96392.0,96391.0,0.28940364]
[1740189556024,0.00381398,96392.0,96391.0,0.28940364]
[1740189556889,0.01115303,96392.0,96391.0,0.28940364]
[1740189557084,0.00381398,96392.0,96391.0,0.28940364]
[1740189557235,0.01115121,96392.0,96391.0,0.28940364]
[1740189557436,0.00381398,96392.0,96391.0,0.28940364]
[1740189557955,0.01115121,96392.0,96391.0,0.28940364]
[1740189558157,0.01115121,96392.0,96391.0,0.13378764]
[1740189558158,0.00381398,96392.0,96391.0,0.13378764]
[1740189558371,0.01115121,96392.0,96391.0,0.28940364]
[1740189565240,0.00381398,96392.0,96391.0,0.28940364]
[1740189565415,0.01115121,96392.0,96391.0,0.28940364]
[1740189565636,0.00381398,96392.0,96391.0,0.28940364]
[1740189565833,0.01115121,96392.0,96391.0,0.28940364]
[1740189574536,0.01115227,96392.0,96391.0,0.28940364]
[1740189574739,0.00381398,96392.0,96391.0,0.28940364]
[1740189584308,0.01115227,96392.0,96391.0,0.28940364]
[1740189584508,0.00381398,96392.0,96391.0,0.28940364]
[1740189590662,0.00381398,96392.0,96391.0,0.41690364]
[1740189594334,0.00381398,96392.0,96391.0,0.36710364]
[1740189594562,0.00381398,96392.0,96391.0,0.21148764]
[1740189594906,0.00381398,96392.0,96391.0,0.39650613]
[1740189595481,0.00381398,96392.0,96391.0,0.36710364]
[1740189596397,0.00381398,96392.0,96391.0,0.41300364]
[1740189600260,0.00381398,96392.0,96391.0,0.56300364]
[1740189600513,9.8e-07,96392.0,96391.0,0.46722967]
[1740189600708,9.8e-07,96392.0,96391.0,0.11164679]
[1740189601138,0.0787022,96402.0,96391.0,0.10564679]
[1740189601352,0.155614,96392.0,96391.0,0.11761984]
[1740189601538,0.157614,96392.0,96391.0,0.12261984]
[1740189601884,0.156614,96392.0,96391.0,0.12161984]
[1740189602718,0.1573148,96392.0,96391.0,0.11761984]
[1740189603023,0.1583148,96392.0,96391.0,0.12461984]
[1740189603233,0.1593148,96392.0,96391.0,0.13061984]
[1740189603454,0.1583148,96392.0,96391.0,0.12461984]
[1740189603768,0.1573148,96392.0,96391.0,0.11961984]
[1740189603914,0.1573148,96392.0,96391.0,0.12161984]
[1740189607442,0.1573148,96392.0,96391.0,0.10707899]
[1740189607646,0.1573148,96392.0,96391.0,0.0012826]
[1740189607854,0.1573148,96392.0,96391.0,0.0032826]
[1740189607959,0.1573148,96392.0,96391.0,0.0042826]
[1740189610084,0.0017008,96392.0,96391.0,0.35718514]
[1740189610288,0.0017008,96392.0,96391.0,0.40668514]
[1740189611758,0.0017008,96392.0,96391.0,0.40568514]
[1740189612523,0.0017008,96392.0,96391.0,0.40768514]
[1740189638906,0.00711302,96392.0,96391.0,0.40768514]
[1740189643190,0.0017008,96392.0,96391.0,0.40768514]
[1740189645244,0.0017008,96392.0,96391.0,0.40368514]
[1740189645427,0.0027008,96392.0,96391.0,0.41068514]
[1740189645626,0.0037008,96392.0,96391.0,0.41668514]
[1740189651706,0.0037008,96392.0,96391.0,0.36718514]
[1740189653987,0.0037008,96392.0,96391.0,0.28708514]
[1740189654156,0.0037008,96392.0,96391.0,0.13906914]
[1740189654367,0.0037008,96392.0,96391.0,0.29468514]
[1740189674839,0.00910083,96392.0,96391.0,0.29468514]
[1740189676608,0.0037008,96392.0,96391.0,0.29468514]
[1740189679722,0.00910645,96392.0,96391.0,0.29468514]
[1740189682528,0.00910645,96392.0,96391.0,0.29464514]
[1740189683926,0.00910645,96392.0,96391.0,0.13146914]
[1740189684489,0.00910645,96392.0,96391.0,0.28708514]
[1740189684688,0.01574272,96392.0,96391.0,0.28708514]
[1740189685876,0.01574272,96392.0,96391.0,0.13146914]
[1740189688495,0.01474272,96392.0,96391.0,0.12546914]
[1740189688696,0.01474272,96392.0,96391.0,0.12746914]
[1740189689167,0.01374272,96392.0,96391.0,0.12046914]
[1740189689402,0.16935672,96392.0,96391.0,0.12046914]
[1740189689658,0.16935672,96392.0,96391.0,0.12346914]
[1740189690341,0.16935672,96392.0,96391.0,0.12046914]
[1740189690982,0.01374272,96392.0,96391.0,0.11846914]
[1740189691199,0.01374272,96392.0,96391.0,0.12046914]
[1740189691536,0.01374272,96392.0,96391.0,0.12346914]
[1740189694347,0.16935672,96392.0,96391.0,0.12346914]
[1740189695716,0.16935672,96392.0,96391.0,0.0062826]
[1740189696098,0.17863104,96392.0,96391.0,0.0062826]
[1740189700130,0.02301704,96392.0,96391.0,0.27908514]
[1740189700326,0.02301704,96392.0,96391.0,0.35708514]
[1740189700327,0.01761139,96392.0,96391.0,0.35708514]
[1740189700574,0.01097512,96392.0,96391.0,0.40598514]
[1740189701147,0.01097512,96392.0,96391.0,0.40298514]
[1740189701548,0.01097512,96392.0,96391.0,0.40498514]
[1740189701743,0.0017008,96392.0,96391.0,0.40998514]
[1740189702818,0.0017008,96392.0,96391.0,0.40598514]
[1740189703174,0.0017008,96392.0,96391.0,0.41198514]
[1740189706222,0.0017008,96392.0,96391.0,0.41954514]
[1740189707193,0.01097063,96392.0,96391.0,0.41954514]
[1740189707601,0.01097063,96392.0,96391.0,0.44830047]
[1740189707751,0.01097063,96392.0,96391.0,0.44230047]
[1740189707954,0.00539509,96404.0,96401.0,0.2335]
[1740189708114,0.15,96431.0,96401.0,0.2335]
[1740189708115,0.15,96431.0,96401.0,0.39738654]
[1740189708359,0.0454,96442.0,96401.0,0.39738654]
[1740189708738,0.15,96441.0,96401.0,0.39738654]
[1740189708975,0.0454,96442.0,96401.0,0.40994654]
[1740189709439,0.0454,96442.0,96401.0,0.43612154]
[1740189709672,0.0027022,96402.0,96401.0,0.44312154]
[1740189710707,0.0027022,96402.0,96401.0,0.45012154]
[1740189711117,0.0027022,96402.0,96401.0,0.46054782]
[1740189711310,0.0027022,96402.0,96401.0,0.67600394]
[1740189717077,0.0027022,96402.0,96401.0,0.69676955]
[1740189720723,2e-07,96402.0,96401.0,0.71676955]
[1740189720927,2e-07,96402.0,96401.0,1.25976955]
[1740189721138,0.0017014,96439.0,96438.0,0.15554]
[1740189721341,0.0017014,96439.0,96438.0,0.44954266]
[1740189721752,0.0017014,96439.0,96438.0,0.48070566]
[1740189722149,0.0017014,96439.0,96438.0,0.48370566]
[1740189722378,0.00174458,96439.0,96438.0,0.48370566]
[1740189722598,0.00174458,96439.0,96438.0,0.48070566]
[1740189722909,0.00174458,96439.0,96438.0,0.48570566]
[1740189723234,0.00174458,96439.0,96438.0,0.44600566]
[1740189723641,0.00174458,96439.0,96438.0,0.43244566]
[1740189723858,0.00174458,96439.0,96438.0,0.17520266]
[1740189724074,0.00174458,96439.0,96438.0,0.33774266]
[1740189724274,0.15728258,96439.0,96438.0,0.17720266]
[1740189724503,0.15728258,96439.0,96438.0,0.18220266]
[1740189724504,0.00780378,96439.0,96438.0,0.18220266]
[1740189724696,0.16334178,96439.0,96438.0,0.16010181]
[1740189724917,0.16334178,96439.0,96438.0,0.15510181]
[1740189725138,0.16334178,96439.0,96438.0,0.11464569]
[1740189725367,0.16334178,96439.0,96438.0,0.10764569]
[1740189725549,0.16334178,96439.0,96438.0,0.10964569]
[1740189725751,0.16334178,96439.0,96438.0,0.008]
[1740189725954,0.16334178,96439.0,96438.0,0.007]
[1740189726130,0.155546,96434.0,96433.0,0.02815271]
[1740189726429,0.155546,96434.0,96433.0,0.12474654]
[1740189726641,0.1616052,96434.0,96433.0,0.12474654]
[1740189726841,0.1616052,96434.0,96425.0,0.04545612]
[1740189726842,0.155559,96426.0,96425.0,0.04545612]
[1740189727044,0.155559,96426.0,96425.0,0.14810181]
[1740189727260,0.1616182,96426.0,96425.0,0.16264266]
[1740189727867,0.01516324,96426.0,96425.0,0.16264266]
[1740189728868,0.02056148,96426.0,96425.0,0.16264266]
[1740189729080,0.01516324,96426.0,96425.0,0.16264266]
[1740189729292,0.01516324,96426.0,96425.0,0.16564266]
[1740189729453,0.00910404,96426.0,96425.0,0.16564266]
[1740189729656,0.01516437,96426.0,96425.0,0.16564266]
[1740189730813,0.00606033,96426.0,96425.0,0.16564266]
[1740189730979,0.00606033,96426.0,96425.0,0.12018654]
[1740189731172,0.155556,96428.0,96426.0,0.01454085]
[1740189731334,0.155558,96427.0,96425.0,0.003]
[1740189731538,0.155558,96427.0,96426.0,0.11718654]
[1740189731743,0.16468291,96427.0,96426.0,0.11718654]
[1740189731942,0.17008192,96427.0,96426.0,0.11718654]
[1740189732147,0.17008192,96427.0,96426.0,0.11918654]
[1740189732378,0.01452392,96427.0,96426.0,0.11918654]
[1740189732594,0.01452392,96427.0,96426.0,0.11718654]
[1740189732595,0.17008192,96427.0,96426.0,0.11718654]
[1740189733054,0.17008192,96427.0,96426.0,0.11918654]
[1740189734588,0.17008192,96427.0,96426.0,0.12018654]
[1740189736181,0.01452392,96427.0,96426.0,0.12018654]
[1740189737357,0.17008192,96427.0,96426.0,0.12018654]
[1740189737562,0.01452392,96427.0,96426.0,0.12018654]
[1740189740066,0.02058425,96427.0,96426.0,0.12018654]
[1740189741099,0.02228485,96427.0,96426.0,0.12018654]
[1740189742804,0.17784285,96427.0,96426.0,0.12018654]
[1740189744001,0.02228485,96427.0,96426.0,0.12018654]
[1740189744214,0.17784285,96427.0,96426.0,0.12018654]
[1740189744412,0.17178252,96427.0,96426.0,0.12018654]
[1740189744614,0.02228423,96427.0,96426.0,0.12018654]
[1740189746051,0.17784223,96427.0,96426.0,0.12018654]
[1740189747733,0.02228423,96427.0,96426.0,0.12018654]
[1740189752906,0.03248275,96427.0,96426.0,0.12018654]
[1740189753465,0.02228423,96427.0,96426.0,0.12018654]
[1740189759637,0.03692649,96427.0,96426.0,0.12018654]
[1740189760232,0.19248449,96427.0,96426.0,0.12018654]
[1740189760459,0.03692649,96427.0,96426.0,0.12018654]
[1740189761257,0.02228423,96427.0,96426.0,0.12018654]
[1740189764714,0.01622452,96427.0,96426.0,0.12018654]
[1740189764944,0.02228706,96427.0,96426.0,0.12018654]
[1740189771209,0.03693638,96427.0,96426.0,0.12018654]
[1740189774351,0.03087384,96427.0,96426.0,0.12018654]
[1740189774659,0.03693638,96427.0,96426.0,0.12018654]
[1740189777511,0.03693638,96427.0,96426.0,0.27574554]
[1740189777966,0.03087384,96427.0,96426.0,0.27574554]
[1740189781173,0.03087384,96427.0,96426.0,0.35574554]
[1740189781374,0.02547483,96427.0,96426.0,0.35574554]
[1740189781775,0.02547483,96427.0,96426.0,0.40464554]
[1740189782154,0.02547483,96427.0,96426.0,0.40264554]
[1740189782579,0.02547483,96427.0,96426.0,0.40564554]
[1740189782792,0.02547483,96427.0,96426.0,0.40964554]
[1740189782969,0.02547483,96427.0,96426.0,0.40564554]
[1740189783487,0.02547483,96427.0,96426.0,0.41064554]
[1740189783707,0.01082551,96427.0,96426.0,0.41064554]
[1740189784519,0.01082551,96427.0,96426.0,0.45610166]
[1740189788158,0.0017006,96427.0,96426.0,0.45610166]
[1740189791096,0.0017006,96427.0,96426.0,0.46366166]
[1740189791677,0.01084605,96427.0,96426.0,0.46366166]
[1740189802943,0.01084605,96427.0,96426.0,0.45610166]
[1740189803197,0.01084605,96427.0,96426.0,0.46366166]
[1740189804494,0.01068012,96427.0,96426.0,0.46366166]
[1740189813205,0.01068012,96427.0,96426.0,0.45610166]
[1740189813357,0.01068012,96427.0,96426.0,0.46366166]
[1740189817121,0.00539616,96436.0,96435.0,0.155545]
[1740189817322,0.00539616,96436.0,96435.0,0.27273154]
[1740189818245,0.00539616,96436.0,96435.0,0.27473154]
[1740189819048,0.02004352,96436.0,96435.0,0.27473154]
[1740189819867,0.02004352,96436.0,96435.0,0.27573154]
[1740189822114,0.02174432,96436.0,96435.0,0.27573154]
[1740189824284,0.02174432,96436.0,96435.0,0.29668504]
[1740189829518,0.03089717,96436.0,96435.0,0.29668504]
[1740189831047,0.03089717,96436.0,96435.0,0.14114004]
[1740189831243,0.03089717,96436.0,96435.0,0.29668504]
[1740189832112,0.03089717,96436.0,96435.0,0.14114004]
[1740189832508,0.03089717,96436.0,96435.0,0.29668504]